[Event "Live Chess"]
[Site "Chess.com"]
[Date "2024.06.02"]
[Round "-"]
[White "Silverback7829"]
[Black "MagnersCarlsberg2870"]
[Result "0-1"]
[WhiteElo "880"]
[BlackElo "1781"]
[TimeControl "300"]
[EndTime "4:08:57 PDT"]
[Termination "MagnersCarlsberg2870 won by checkmate"]

1. d4 {[%clk 0:04:55.3]} 1... Nf6 {[%clk 0:04:58.5]} 2. Nf3 {[%clk 0:04:51.7]}
2... b6 {[%clk 0:04:57]} 3. Nc3 {[%clk 0:04:50.3]} 3... Bb7 {[%clk 0:04:55.8]}
4. Bf4 {[%clk 0:04:46.8]} 4... d6 {[%clk 0:04:54.6]} 5. e3 {[%clk 0:04:44.9]}
5... g6 {[%clk 0:04:53.3]} 6. Bc4 {[%clk 0:04:43]} 6... Bg7 {[%clk 0:04:48.7]}
7. Qd2 {[%clk 0:04:37.5]} 7... O-O {[%clk 0:04:47.2]} 8. O-O {[%clk 0:04:35.9]}
8... Nbd7 {[%clk 0:04:45.7]} 9. Bb5 {[%clk 0:04:29.4]} 9... a6 {[%clk 0:04:44]}
10. Bxd7 {[%clk 0:04:27.5]} 10... Qxd7 {[%clk 0:04:42.7]} 11. e4 {[%clk
0:04:18.1]} 11... Nh5 {[%clk 0:04:40]} 12. Bg5 {[%clk 0:04:08.3]} 12... f6
{[%clk 0:04:37.5]} 13. Bh4 {[%clk 0:04:03.9]} 13... e5 {[%clk 0:04:29.5]} 14.
dxe5 {[%clk 0:04:00.9]} 14... fxe5 {[%clk 0:04:26]} 15. Ng5 {[%clk 0:03:42.6]}
15... h6 {[%clk 0:04:20]} 16. Nf3 {[%clk 0:03:37.7]} 16... Bf6 {[%clk
0:04:17.3]} 17. Rae1 {[%clk 0:03:32.9]} 17... Bxh4 {[%clk 0:04:13.9]} 18. Nxh4
{[%clk 0:03:29.7]} 18... Kg7 {[%clk 0:04:10.5]} 19. b3 {[%clk 0:03:16]} 19...
Qg4 {[%clk 0:04:08.8]} 20. Qe2 {[%clk 0:03:08.3]} 20... Qxh4 {[%clk 0:04:06.9]}
21. Qc4 {[%clk 0:02:37.9]} 21... Rf7 {[%clk 0:03:53.4]} 22. Ne2 {[%clk
0:02:27.1]} 22... Qg4 {[%clk 0:03:47]} 23. h3 {[%clk 0:02:17.9]} 23... Qg5
{[%clk 0:03:40.6]} 24. Rd1 {[%clk 0:02:14.3]} 24... Nf4 {[%clk 0:03:37.4]} 25.
Nxf4 {[%clk 0:02:09.1]} 25... Rxf4 {[%clk 0:03:36.1]} 26. Qe6 {[%clk 0:02:00.8]}
26... Bxe4 {[%clk 0:03:28.5]} 27. c4 {[%clk 0:01:55.9]} 27... Qxg2# {[%clk
0:03:26.6]} 0-1

[Event "Live Chess"]
[Site "Chess.com"]
[Date "2024.06.02"]
[Round "-"]
[White "Ksenia_2013"]
[Black "ClassyChameleon"]
[Result "0-1"]
[WhiteElo "977"]
[BlackElo "1530"]
[TimeControl "300"]
[EndTime "4:09:10 PDT"]
[Termination "ClassyChameleon won by checkmate"]

1. e4 {[%clk 0:04:57.3]} 1... e5 {[%clk 0:04:59.5]} 2. Nf3 {[%clk 0:04:55.9]}
2... Nc6 {[%clk 0:04:59]} 3. Bc4 {[%clk 0:04:54.3]} 3... Nf6 {[%clk 0:04:58.6]}
4. Ng5 {[%clk 0:04:53]} 4... Nxe4 {[%clk 0:04:58.1]} 5. Qf3 {[%clk 0:04:48.6]}
5... Nxg5 {[%clk 0:04:55.5]} 6. Qf5 {[%clk 0:04:42.6]} 6... Ne6 {[%clk
0:04:51.7]} 7. O-O {[%clk 0:04:36.3]} 7... Ncd4 {[%clk 0:04:48.7]} 8. Qxe5
{[%clk 0:04:30.1]} 8... Nxc2 {[%clk 0:04:44.4]} 9. b3 {[%clk 0:04:19.5]} 9...
Nxa1 {[%clk 0:04:42.2]} 10. Qxa1 {[%clk 0:04:17.5]} 10... d5 {[%clk 0:04:41.8]}
11. Bb5+ {[%clk 0:04:13.5]} 11... c6 {[%clk 0:04:40.6]} 12. Bd3 {[%clk
0:04:12.2]} 12... Bc5 {[%clk 0:04:36]} 13. Bf5 {[%clk 0:04:06.5]} 13... O-O
{[%clk 0:04:34.3]} 14. Bxe6 {[%clk 0:04:00.8]} 14... Bxe6 {[%clk 0:04:33.6]} 15.
Bb2 {[%clk 0:03:58.9]} 15... f6 {[%clk 0:04:31.4]} 16. Nc3 {[%clk 0:03:54.7]}
16... Qd6 {[%clk 0:04:19.6]} 17. Ne2 {[%clk 0:03:52.8]} 17... Bg4 {[%clk
0:04:13.7]} 18. Re1 {[%clk 0:03:36.9]} 18... Bxe2 {[%clk 0:04:09.4]} 19. Rxe2
{[%clk 0:03:35.3]} 19... Qf4 {[%clk 0:04:05.5]} 20. Qf1 {[%clk 0:03:27.3]} 20...
Rae8 {[%clk 0:04:03.4]} 21. Rxe8 {[%clk 0:03:13.3]} 21... Rxe8 {[%clk
0:04:03.3]} 22. Kh1 {[%clk 0:03:06.6]} 22... Qxd2 {[%clk 0:03:59.1]} 23. Bc1
{[%clk 0:03:03]} 23... Re1 {[%clk 0:03:54.4]} 24. Kg1 {[%clk 0:03:00.1]} 24...
Rxf1+ {[%clk 0:03:52.9]} 25. Kxf1 {[%clk 0:02:56.3]} 25... Qd1# {[%clk
0:03:52.8]} 0-1

[Event "Live Chess"]
[Site "Chess.com"]
[Date "2024.06.02"]
[Round "-"]
[White "KeithArkell"]
[Black "RichardABates"]
[Result "1-0"]
[WhiteElo "2422"]
[BlackElo "2327"]
[TimeControl "300"]
[EndTime "4:09:34 PDT"]
[Termination "KeithArkell won by resignation"]

1. d4 {[%clk 0:04:57.6]} 1... Nf6 {[%clk 0:04:57.8]} 2. Nf3 {[%clk 0:04:55.6]}
2... e6 {[%clk 0:04:54.1]} 3. c4 {[%clk 0:04:54.9]} 3... Bb4+ {[%clk 0:04:48.8]}
4. Bd2 {[%clk 0:04:54.1]} 4... a5 {[%clk 0:04:47.5]} 5. g3 {[%clk 0:04:52.8]}
5... d6 {[%clk 0:04:44.2]} 6. Bg2 {[%clk 0:04:51.7]} 6... Nbd7 {[%clk
0:04:42.7]} 7. O-O {[%clk 0:04:51]} 7... O-O {[%clk 0:04:41.4]} 8. Bg5 {[%clk
0:04:49.9]} 8... a4 {[%clk 0:04:32.9]} 9. Qc2 {[%clk 0:04:46.4]} 9... h6 {[%clk
0:04:26.5]} 10. Bxf6 {[%clk 0:04:44.9]} 10... Qxf6 {[%clk 0:04:23.7]} 11. a3
{[%clk 0:04:44.2]} 11... Ba5 {[%clk 0:04:22.2]} 12. Qxa4 {[%clk 0:04:43.3]}
12... d5 {[%clk 0:04:02.4]} 13. c5 {[%clk 0:04:39.2]} 13... Ra6 {[%clk
0:03:55.5]} 14. Qc2 {[%clk 0:04:35.6]} 14... b6 {[%clk 0:03:45.8]} 15. c6 {[%clk
0:04:31.8]} 15... Nb8 {[%clk 0:03:42.3]} 16. Nc3 {[%clk 0:04:24.8]} 16... Nxc6
{[%clk 0:03:37.9]} 17. b4 {[%clk 0:04:23.3]} 17... Nxd4 {[%clk 0:03:30.1]} 18.
Nxd4 {[%clk 0:04:22.4]} 18... Qxd4 {[%clk 0:03:28.9]} 19. bxa5 {[%clk
0:04:21.5]} 19... Rxa5 {[%clk 0:03:28]} 20. e3 {[%clk 0:04:20]} 20... Qe5 {[%clk
0:03:21.5]} 21. Rfc1 {[%clk 0:04:13.6]} 21... c5 {[%clk 0:03:19.1]} 22. Qb3
{[%clk 0:04:09.7]} 22... Qd6 {[%clk 0:03:09.4]} 23. Nb5 {[%clk 0:04:05.5]} 23...
Qb8 {[%clk 0:03:00.3]} 24. a4 {[%clk 0:04:03.6]} 24... Bd7 {[%clk 0:02:58.9]}
25. Rab1 {[%clk 0:04:02]} 25... Bxb5 {[%clk 0:02:55.6]} 26. axb5 {[%clk
0:04:00.3]} 26... Qa7 {[%clk 0:02:54.2]} 27. Qb2 {[%clk 0:03:54.3]} 27... Ra8
{[%clk 0:02:50]} 28. e4 {[%clk 0:03:53.8]} 28... d4 {[%clk 0:02:46.1]} 29. e5
{[%clk 0:03:52.2]} 29... Rd8 {[%clk 0:02:42.2]} 30. Ra1 {[%clk 0:03:44.6]} 30...
d3 {[%clk 0:02:30.6]} 31. Rxa5 {[%clk 0:03:43.4]} 31... Qxa5 {[%clk 0:02:29.6]}
32. Ra1 {[%clk 0:03:38.3]} 32... d2 {[%clk 0:02:27.4]} 33. Bf3 {[%clk
0:03:37.9]} 33... Qb4 {[%clk 0:02:20.7]} 34. Qxb4 {[%clk 0:03:34.3]} 34... cxb4
{[%clk 0:02:19.6]} 35. Rb1 {[%clk 0:03:31.8]} 35... b3 {[%clk 0:02:15.6]} 36.
Kg2 {[%clk 0:03:10.9]} 36... Rc8 {[%clk 0:02:09.6]} 37. Rxb3 {[%clk 0:03:09.5]}
1-0

[Event "Live Chess"]
[Site "Chess.com"]
[Date "2024.06.02"]
[Round "-"]
[White "Dhaydon19"]
[Black "Mikhail_Golubev"]
[Result "1-0"]
[WhiteElo "2643"]
[BlackElo "2510"]
[TimeControl "300"]
[EndTime "4:10:02 PDT"]
[Termination "Dhaydon19 won on time"]

1. c4 {[%clk 0:04:58.1]} 1... g6 {[%clk 0:04:58.6]} 2. Nc3 {[%clk 0:04:55]} 2...
Bg7 {[%clk 0:04:57.6]} 3. g3 {[%clk 0:04:54.2]} 3... e5 {[%clk 0:04:56.1]} 4.
Bg2 {[%clk 0:04:53.7]} 4... Nc6 {[%clk 0:04:54.9]} 5. e3 {[%clk 0:04:53.3]} 5...
d6 {[%clk 0:04:52]} 6. Nge2 {[%clk 0:04:52.8]} 6... Nf6 {[%clk 0:04:51.1]} 7. d3
{[%clk 0:04:44.9]} 7... O-O {[%clk 0:04:48.8]} 8. h3 {[%clk 0:04:43.7]} 8... Be6
{[%clk 0:04:46.5]} 9. Nd5 {[%clk 0:04:42]} 9... Ne8 {[%clk 0:04:44.9]} 10. b4
{[%clk 0:04:38.5]} 10... Qd7 {[%clk 0:04:37.7]} 11. b5 {[%clk 0:04:34.8]} 11...
Nd8 {[%clk 0:04:36.3]} 12. Rb1 {[%clk 0:04:31.4]} 12... c6 {[%clk 0:04:30.9]}
13. Ndc3 {[%clk 0:04:29.7]} 13... d5 {[%clk 0:04:27.8]} 14. bxc6 {[%clk
0:04:28]} 14... bxc6 {[%clk 0:04:23.2]} 15. cxd5 {[%clk 0:04:26.8]} 15... cxd5
{[%clk 0:04:16.9]} 16. Ba3 {[%clk 0:04:24.7]} 16... Nd6 {[%clk 0:04:15.1]} 17.
Nxd5 {[%clk 0:04:14.5]} 17... Re8 {[%clk 0:04:11.3]} 18. O-O {[%clk 0:04:08.1]}
18... Rc8 {[%clk 0:03:58.4]} 19. Nec3 {[%clk 0:04:02.3]} 19... N8b7 {[%clk
0:03:10.8]} 20. Bxd6 {[%clk 0:03:53.8]} 20... Nxd6 {[%clk 0:03:07.7]} 21. e4
{[%clk 0:03:49.6]} 21... Bxh3 {[%clk 0:03:04.3]} 22. Bxh3 {[%clk 0:03:46.3]}
22... Qxh3 {[%clk 0:03:03.9]} 23. Qf3 {[%clk 0:03:43.3]} 23... f5 {[%clk
0:02:45.3]} 24. Rfc1 {[%clk 0:03:30.1]} 24... f4 {[%clk 0:02:37]} 25. Qg2 {[%clk
0:03:24.4]} 25... Qd7 {[%clk 0:02:34.9]} 26. gxf4 {[%clk 0:03:21]} 26... exf4
{[%clk 0:02:33.7]} 27. Ne2 {[%clk 0:03:20]} 27... Rxc1+ {[%clk 0:01:45.9]} 28.
Rxc1 {[%clk 0:03:07]} 28... Qa4 {[%clk 0:01:45.4]} 29. Nexf4 {[%clk 0:02:53.6]}
29... Qxa2 {[%clk 0:01:39.8]} 30. Qg5 {[%clk 0:02:43.6]} 30... Qb2 {[%clk
0:01:05.3]} 31. Rc7 {[%clk 0:02:39.3]} 31... Bd4 {[%clk 0:00:55.4]} 32. Qh4
{[%clk 0:02:29.5]} 32... Nf7 {[%clk 0:00:37.4]} 33. Qg3 {[%clk 0:02:05]} 33...
Be5 {[%clk 0:00:32.7]} 34. Rxa7 {[%clk 0:01:56.4]} 34... g5 {[%clk 0:00:26.9]}
35. Qg4 {[%clk 0:01:52.7]} 35... Bxf4 {[%clk 0:00:19.4]} 36. Nxf4 {[%clk
0:01:49.9]} 36... Qc1+ {[%clk 0:00:18.2]} 37. Kg2 {[%clk 0:01:44.9]} 37... Qxf4
{[%clk 0:00:18.1]} 38. Qxf4 {[%clk 0:01:43.7]} 38... gxf4 {[%clk 0:00:18]} 39.
d4 {[%clk 0:01:42.1]} 39... Rxe4 {[%clk 0:00:16.5]} 40. d5 {[%clk 0:01:41.3]}
40... Rd4 {[%clk 0:00:16]} 41. Ra5 {[%clk 0:01:40.4]} 41... Ng5 {[%clk
0:00:13.3]} 42. d6 {[%clk 0:01:38.6]} 42... h6 {[%clk 0:00:12.7]} 43. Ra8+
{[%clk 0:01:33.8]} 43... Kf7 {[%clk 0:00:11.8]} 44. Ra7+ {[%clk 0:01:33.5]}
44... Kg6 {[%clk 0:00:09.8]} 45. d7 {[%clk 0:01:32.2]} 45... Kf5 {[%clk
0:00:07.5]} 46. Ra5+ {[%clk 0:01:31.3]} 46... Kg4 {[%clk 0:00:05.9]} 47. Ra8
{[%clk 0:01:30.8]} 47... h5 {[%clk 0:00:04.1]} 48. d8=Q {[%clk 0:01:29.1]} 48...
Rxd8 {[%clk 0:00:02.9]} 49. Rxd8 {[%clk 0:01:27.4]} 49... h4 {[%clk 0:00:02.3]}
50. Rg8 {[%clk 0:01:24.2]} 50... h3+ {[%clk 0:00:01.8]} 51. Kh2 {[%clk
0:01:22.7]} 51... Kh4 {[%clk 0:00:01.3]} 52. Rh8+ {[%clk 0:01:21.2]} 52... Kg4
{[%clk 0:00:00.8]} 53. Kg1 {[%clk 0:01:20.2]} 1-0

[Event "Live Chess"]
[Site "Chess.com"]
[Date "2024.06.02"]
[Round "-"]
[White "Grace6363"]
[Black "WeakOldFinished"]
[Result "0-1"]
[WhiteElo "1144"]
[BlackElo "2178"]
[TimeControl "300"]
[EndTime "4:10:06 PDT"]
[Termination "WeakOldFinished won by resignation"]

1. d4 {[%clk 0:04:57.3]} 1... Nf6 {[%clk 0:04:57.7]} 2. c4 {[%clk 0:04:56.5]}
2... e5 {[%clk 0:04:56.8]} 3. dxe5 {[%clk 0:04:55.5]} 3... Ng4 {[%clk
0:04:55.3]} 4. Bf4 {[%clk 0:04:54.1]} 4... Nc6 {[%clk 0:04:50.8]} 5. Nf3 {[%clk
0:04:53.1]} 5... Bb4+ {[%clk 0:04:49.4]} 6. Nbd2 {[%clk 0:04:52.3]} 6... Qe7
{[%clk 0:04:46.8]} 7. e3 {[%clk 0:04:51.5]} 7... Ngxe5 {[%clk 0:04:42.1]} 8.
Nxe5 {[%clk 0:04:50.7]} 8... Nxe5 {[%clk 0:04:40.9]} 9. Be2 {[%clk 0:04:43.2]}
9... O-O {[%clk 0:04:34.5]} 10. O-O {[%clk 0:04:42.3]} 10... Bxd2 {[%clk
0:04:26.4]} 11. Qxd2 {[%clk 0:04:37]} 11... d6 {[%clk 0:04:26.3]} 12. Rfd1
{[%clk 0:04:30.8]} 12... b6 {[%clk 0:04:25]} 13. b4 {[%clk 0:04:24.7]} 13... a5
{[%clk 0:04:23.7]} 14. Bxe5 {[%clk 0:04:19.2]} 14... Qxe5 {[%clk 0:04:22.2]} 15.
f4 {[%clk 0:04:14.4]} 15... Qe7 {[%clk 0:04:18.9]} 16. Bf3 {[%clk 0:04:12.2]}
16... Ra7 {[%clk 0:04:15.1]} 17. bxa5 {[%clk 0:04:02.6]} 17... Rxa5 {[%clk
0:04:13.6]} 18. Qd4 {[%clk 0:03:47.2]} 18... Rc5 {[%clk 0:04:10.8]} 19. Rab1
{[%clk 0:03:40.1]} 19... Bd7 {[%clk 0:04:04.2]} 20. Rd2 {[%clk 0:03:22.7]} 20...
Re8 {[%clk 0:04:01.8]} 21. Re1 {[%clk 0:03:19.9]} 21... Qf6 {[%clk 0:03:33.8]}
22. Qxf6 {[%clk 0:03:09.2]} 22... gxf6 {[%clk 0:03:33.7]} 23. Rd4 {[%clk
0:02:56.3]} 23... Be6 {[%clk 0:03:26.5]} 24. Rc1 {[%clk 0:02:50.3]} 24... f5
{[%clk 0:03:16.3]} 25. Kf2 {[%clk 0:02:47.6]} 25... b5 {[%clk 0:03:10.1]} 26.
Bd5 {[%clk 0:02:33.2]} 26... b4 {[%clk 0:03:04.3]} 27. Bxe6 {[%clk 0:02:25.6]}
27... fxe6 {[%clk 0:03:03.3]} 28. Rb1 {[%clk 0:02:15.6]} 28... Rb8 {[%clk
0:03:02]} 29. e4 {[%clk 0:02:13.1]} 29... Ra5 {[%clk 0:02:48.7]} 30. Rb2 {[%clk
0:01:45.3]} 30... Kf7 {[%clk 0:02:43.7]} 31. exf5 {[%clk 0:01:43.9]} 31... Rxf5
{[%clk 0:02:42.4]} 32. g4 {[%clk 0:01:41.6]} 32... Ra5 {[%clk 0:02:39.9]} 33. c5
{[%clk 0:01:37.4]} 33... Rxc5 {[%clk 0:02:37.1]} 34. Rdxb4 {[%clk 0:01:34.4]}
34... Rxb4 {[%clk 0:02:36.4]} 35. Rxb4 {[%clk 0:01:33.9]} 35... Rc2+ {[%clk
0:02:36.3]} 36. Kg3 {[%clk 0:01:32.6]} 36... Rxa2 {[%clk 0:02:35.5]} 37. Rb7
{[%clk 0:01:31.4]} 37... Rc2 {[%clk 0:02:34.4]} 38. h4 {[%clk 0:01:28.6]} 38...
Rc3+ {[%clk 0:02:32]} 39. Kg2 {[%clk 0:01:26.9]} 39... d5 {[%clk 0:02:30.6]} 40.
g5 {[%clk 0:01:19]} 40... Kg6 {[%clk 0:02:29.1]} 41. Rb8 {[%clk 0:01:12.7]}
41... Kh5 {[%clk 0:02:21.6]} 42. Re8 {[%clk 0:01:08.7]} 42... Re3 {[%clk
0:02:18.4]} 43. f5 {[%clk 0:01:04.7]} 43... Kxh4 {[%clk 0:02:15.1]} 44. Rxe6
{[%clk 0:01:01.8]} 44... Rg3+ {[%clk 0:02:12.2]} 45. Kf2 {[%clk 0:01:00.6]}
45... Rxg5 {[%clk 0:02:11]} 46. f6 {[%clk 0:00:57.2]} 46... Rf5+ {[%clk
0:02:08.7]} 47. Ke3 {[%clk 0:00:47.5]} 47... c5 {[%clk 0:02:07.4]} 48. Rd6
{[%clk 0:00:37]} 48... Kg4 {[%clk 0:02:01.7]} 49. f7 {[%clk 0:00:33]} 49... d4+
{[%clk 0:02:00.8]} 50. Ke4 {[%clk 0:00:31.2]} 50... Rxf7 {[%clk 0:01:59.6]} 51.
Rc6 {[%clk 0:00:27.7]} 51... Rd7 {[%clk 0:01:54.8]} 52. Rxc5 {[%clk 0:00:25.3]}
52... d3 {[%clk 0:01:53.8]} 53. Rc1 {[%clk 0:00:20.8]} 53... d2 {[%clk
0:01:52.7]} 54. Rd1 {[%clk 0:00:20.4]} 54... h5 {[%clk 0:01:49.3]} 55. Ke3
{[%clk 0:00:19.4]} 55... h4 {[%clk 0:01:47.5]} 56. Kf2 {[%clk 0:00:16.9]} 56...
Kf4 {[%clk 0:01:45.9]} 57. Kg2 {[%clk 0:00:16.2]} 57... Ke3 {[%clk 0:01:44.3]}
58. Kh3 {[%clk 0:00:14.4]} 58... Ke2 {[%clk 0:01:43.3]} 59. Rh1 {[%clk
0:00:12.2]} 59... d1=Q {[%clk 0:01:41.3]} 60. Rh2+ {[%clk 0:00:11.5]} 60... Kf3
{[%clk 0:01:39]} 61. Kxh4 {[%clk 0:00:08.2]} 61... Rh7+ {[%clk 0:01:37.4]} 0-1

[Event "Live Chess"]
[Site "Chess.com"]
[Date "2024.06.02"]
[Round "-"]
[White "wadsy27"]
[Black "defenderalist"]
[Result "1-0"]
[WhiteElo "2594"]
[BlackElo "1525"]
[TimeControl "300"]
[EndTime "4:10:11 PDT"]
[Termination "wadsy27 won by resignation"]

1. c4 {[%clk 0:04:58]} 1... e5 {[%clk 0:04:57.3]} 2. g3 {[%clk 0:04:57.3]} 2...
Nf6 {[%clk 0:04:55.1]} 3. Bg2 {[%clk 0:04:56.9]} 3... d6 {[%clk 0:04:52.5]} 4.
Nc3 {[%clk 0:04:55.7]} 4... Nc6 {[%clk 0:04:51.4]} 5. Nf3 {[%clk 0:04:54.9]}
5... Be6 {[%clk 0:04:49.5]} 6. b3 {[%clk 0:04:52.6]} 6... Qd7 {[%clk 0:04:48.3]}
7. d4 {[%clk 0:04:51.1]} 7... exd4 {[%clk 0:04:46.8]} 8. Nxd4 {[%clk 0:04:51]}
8... Bh3 {[%clk 0:04:39.6]} 9. O-O {[%clk 0:04:49.4]} 9... Bxg2 {[%clk
0:04:38.3]} 10. Kxg2 {[%clk 0:04:48.1]} 10... Be7 {[%clk 0:04:34.9]} 11. Bb2
{[%clk 0:04:45.1]} 11... h5 {[%clk 0:04:28.4]} 12. h4 {[%clk 0:04:38.3]} 12...
Ng4 {[%clk 0:04:25.8]} 13. Nxc6 {[%clk 0:04:32.5]} 13... Qxc6+ {[%clk
0:04:22.2]} 14. Qd5 {[%clk 0:04:31.4]} 14... Qd7 {[%clk 0:04:16]} 15. Qxb7
{[%clk 0:04:23.6]} 15... O-O {[%clk 0:04:13.9]} 16. Nd5 {[%clk 0:04:21.1]} 1-0

[Event "Live Chess"]
[Site "Chess.com"]
[Date "2024.06.02"]
[Round "-"]
[White "PureDashingOctopus"]
[Black "StoreySniper"]
[Result "0-1"]
[WhiteElo "2267"]
[BlackElo "2497"]
[TimeControl "300"]
[EndTime "4:10:27 PDT"]
[Termination "StoreySniper won by checkmate"]

1. e4 {[%clk 0:04:58.6]} 1... g6 {[%clk 0:04:59.4]} 2. d4 {[%clk 0:04:57.3]}
2... Bg7 {[%clk 0:04:59.2]} 3. Nc3 {[%clk 0:04:56.6]} 3... c5 {[%clk 0:04:58.8]}
4. dxc5 {[%clk 0:04:54.9]} 4... Bxc3+ {[%clk 0:04:57.2]} 5. bxc3 {[%clk
0:04:53.7]} 5... Nf6 {[%clk 0:04:56.8]} 6. e5 {[%clk 0:04:49.2]} 6... Ne4 {[%clk
0:04:54.8]} 7. Qd4 {[%clk 0:04:47.7]} 7... Qa5 {[%clk 0:04:52.6]} 8. Ne2 {[%clk
0:04:15.4]} 8... Nxc5 {[%clk 0:04:13.8]} 9. e6 {[%clk 0:04:11.2]} 9... f6 {[%clk
0:04:11.1]} 10. exd7+ {[%clk 0:04:07.7]} 10... Bxd7 {[%clk 0:04:10.3]} 11. Qb4
{[%clk 0:04:05.9]} 11... Qc7 {[%clk 0:04:04.8]} 12. Bf4 {[%clk 0:04:04.3]} 12...
e5 {[%clk 0:04:00.6]} 13. Be3 {[%clk 0:04:03.7]} 13... Nba6 {[%clk 0:03:55.1]}
14. Qh4 {[%clk 0:04:03.1]} 14... O-O {[%clk 0:03:45.3]} 15. g3 {[%clk
0:03:58.4]} 15... Bc6 {[%clk 0:03:40]} 16. Bxc5 {[%clk 0:03:47.4]} 16... Bxh1
{[%clk 0:03:27.2]} 17. Bxf8 {[%clk 0:03:42.6]} 17... Rxf8 {[%clk 0:03:25.1]} 18.
O-O-O {[%clk 0:03:40.1]} 18... Bf3 {[%clk 0:02:52.8]} 19. Bh3 {[%clk 0:03:14]}
19... f5 {[%clk 0:02:51.3]} 20. Rd2 {[%clk 0:03:02.4]} 20... Rc8 {[%clk
0:02:27.6]} 21. Qf6 {[%clk 0:02:43.9]} 21... Bxe2 {[%clk 0:02:12.7]} 22. Qe6+
{[%clk 0:02:32.1]} 22... Kh8 {[%clk 0:01:54.7]} 23. Rxe2 {[%clk 0:02:30.2]}
23... Qxc3 {[%clk 0:01:44]} 24. Qf6+ {[%clk 0:01:52.2]} 24... Kg8 {[%clk
0:01:42.7]} 25. Rxe5 {[%clk 0:01:43.8]} 25... Qxc2# {[%clk 0:01:40.7]} 0-1

[Event "Live Chess"]
[Site "Chess.com"]
[Date "2024.06.02"]
[Round "-"]
[White "upoe610"]
[Black "asingardenof"]
[Result "1-0"]
[WhiteElo "2123"]
[BlackElo "621"]
[TimeControl "300"]
[EndTime "4:10:39 PDT"]
[Termination "upoe610 won by checkmate"]

1. e4 {[%clk 0:04:58]} 1... c6 {[%clk 0:04:58.6]} 2. Nc3 {[%clk 0:04:56.2]} 2...
d5 {[%clk 0:04:58.5]} 3. Nf3 {[%clk 0:04:55.5]} 3... Nf6 {[%clk 0:04:57.4]} 4.
e5 {[%clk 0:04:53.6]} 4... Nfd7 {[%clk 0:04:51.9]} 5. e6 {[%clk 0:04:52.2]} 5...
fxe6 {[%clk 0:04:48.3]} 6. Ng5 {[%clk 0:04:51]} 6... Qc7 {[%clk 0:04:43.3]} 7.
Nxe6 {[%clk 0:04:48.6]} 7... Qd6 {[%clk 0:04:41.4]} 8. Qe2 {[%clk 0:04:45.4]}
8... Nc5 {[%clk 0:04:37.5]} 9. Nxc5 {[%clk 0:04:44]} 9... Qxc5 {[%clk
0:04:36.3]} 10. g3 {[%clk 0:04:39.2]} 10... Nd7 {[%clk 0:04:35.4]} 11. Bg2
{[%clk 0:04:38.3]} 11... b6 {[%clk 0:04:34.1]} 12. O-O {[%clk 0:04:37.2]} 12...
Nf6 {[%clk 0:04:30.5]} 13. d3 {[%clk 0:04:35.8]} 13... Bf5 {[%clk 0:04:26.4]}
14. Bf4 {[%clk 0:04:33.8]} 14... g6 {[%clk 0:04:19.3]} 15. Be5 {[%clk
0:04:32.3]} 15... Nh5 {[%clk 0:04:19.2]} 16. Bxh8 {[%clk 0:04:27.2]} 16... Kf7
{[%clk 0:04:14.5]} 17. d4 {[%clk 0:04:25.7]} 17... Bg7 {[%clk 0:04:14.4]} 18.
dxc5 {[%clk 0:04:23.6]} 18... Rxh8 {[%clk 0:04:07.9]} 19. Rfe1 {[%clk
0:04:19.7]} 19... Re8 {[%clk 0:04:07.8]} 20. g4 {[%clk 0:04:18.3]} 20... Nf4
{[%clk 0:04:03.3]} 21. Qf3 {[%clk 0:04:17.4]} 21... Bxc2 {[%clk 0:03:58.3]} 22.
Qxf4+ {[%clk 0:04:16]} 22... Bf6 {[%clk 0:03:58.1]} 23. g5 {[%clk 0:04:14.2]}
23... e5 {[%clk 0:03:56.8]} 24. Qxf6+ {[%clk 0:04:12.1]} 24... Kg8 {[%clk
0:03:54.7]} 25. Nxd5 {[%clk 0:04:11.5]} 25... Rf8 {[%clk 0:03:54.4]} 26. Ne7#
{[%clk 0:04:10.3]} 1-0

[Event "Live Chess"]
[Site "Chess.com"]
[Date "2024.06.02"]
[Round "-"]
[White "stevochess11"]
[Black "JanMur7"]
[Result "0-1"]
[WhiteElo "1708"]
[BlackElo "2292"]
[TimeControl "300"]
[EndTime "4:11:05 PDT"]
[Termination "JanMur7 won by resignation"]

1. d4 {[%clk 0:04:55.6]} 1... Nf6 {[%clk 0:04:58.4]} 2. Nf3 {[%clk 0:04:53.7]}
2... e6 {[%clk 0:04:56.9]} 3. e3 {[%clk 0:04:51.1]} 3... d5 {[%clk 0:04:55]} 4.
Bd3 {[%clk 0:04:50]} 4... b6 {[%clk 0:04:52.7]} 5. Nbd2 {[%clk 0:04:46.5]} 5...
Bb7 {[%clk 0:04:51.7]} 6. b3 {[%clk 0:04:45.6]} 6... Nbd7 {[%clk 0:04:49]} 7.
O-O {[%clk 0:04:44.6]} 7... Be7 {[%clk 0:04:41.4]} 8. Bb2 {[%clk 0:04:43.3]}
8... O-O {[%clk 0:04:40.8]} 9. Ne5 {[%clk 0:04:41.8]} 9... Nxe5 {[%clk
0:04:38.9]} 10. dxe5 {[%clk 0:04:40.9]} 10... Ne4 {[%clk 0:04:38.4]} 11. f4
{[%clk 0:04:12.9]} 11... Bc5 {[%clk 0:04:30]} 12. Rf3 {[%clk 0:04:07]} 12...
Nxd2 {[%clk 0:04:18.7]} 13. Bxh7+ {[%clk 0:03:51.1]} 13... Kxh7 {[%clk
0:04:06.3]} 14. Rh3+ {[%clk 0:03:49]} 14... Kg8 {[%clk 0:04:05.8]} 15. Qh5
{[%clk 0:03:47.4]} 15... f5 {[%clk 0:03:56.4]} 16. Qh7+ {[%clk 0:03:22.6]} 16...
Kf7 {[%clk 0:03:53.5]} 17. Rg3 {[%clk 0:03:18.5]} 17... Rg8 {[%clk 0:03:49.1]}
18. Qg6+ {[%clk 0:03:15.2]} 18... Ke7 {[%clk 0:03:43.8]} 19. Rd1 {[%clk
0:02:53.6]} 19... Ne4 {[%clk 0:03:34.9]} 20. Rh3 {[%clk 0:02:39.5]} 20... Qe8
{[%clk 0:03:27.6]} 21. Qh7 {[%clk 0:02:34.6]} 21... Qf7 {[%clk 0:03:25.8]} 22.
c4 {[%clk 0:02:21.6]} 22... Bxe3+ {[%clk 0:03:14.2]} 23. Rxe3 {[%clk 0:02:18.1]}
23... Rh8 {[%clk 0:03:12.4]} 0-1